bitfinex/quotes_ETHUSD_20250815
["timestamp","ask_amount","ask_price","bid_price","bid_amount"]
[1755283527059,3.29640931,4395.2,4395.1,0.02]
[1755283527362,6.29640931,4395.2,4395.1,0.02]
[1755283527576,10.23940931,4395.2,4395.1,0.02]
[1755283527918,4.0576,4395.2,4395.1,0.02]
[1755283528078,7.24040931,4395.2,4395.1,0.02]
[1755283528277,11.0863619,4395.2,4395.1,0.02]
[1755283528574,0.95871397,4395.7,4395.1,0.02]
[1755283528773,0.95871397,4395.7,4394.4,0.01528901]
[1755283528975,3.955,4395.6,4394.4,2.29086524]
[1755283529200,0.95871397,4395.7,4394.5,2.27557173]
[1755283529375,3.954,4395.6,4394.4,0.47394979]
[1755283529570,3.954,4395.6,4394.4,0.01528901]
[1755283530072,0.95871397,4395.7,4394.4,0.01528901]
[1755283530280,0.95871397,4395.7,4394.5,0.4037]
[1755283530609,0.95871397,4395.7,4395.2,2.27520931]
[1755283530814,0.95871397,4395.7,4395.4,2.27510579]
[1755283530986,0.95871397,4395.7,4395.6,2.27500227]
[1755283531191,0.456,4397.7,4395.1,2.27526108]
[1755283531391,5.482,4397.4,4396.9,2.27429949]
[1755283531719,5.482,4397.4,4395.8,2.27489876]
[1755283531720,0.5482,4397.3,4397.1,2.27422133]
[1755283531934,0.02,4397.4,4396.4,2.27458829]
[1755283532077,0.02,4397.4,4397.3,2.27412275]
[1755283532610,0.02,4397.4,4397.3,2.87442275]
[1755283532611,1e-08,4397.4,4397.3,2.87442275]
[1755283533110,1e-08,4397.4,4397.3,6.96202652]
[1755283533316,0.02,4400.4,4397.4,3.0]
[1755283533524,0.02,4400.4,4399.7,2.27288224]
[1755283533689,1.466,4402.6,4399.8,3.0227283]
[1755283533886,0.456,4402.9,4401.3,2.27205598]
[1755283534087,4.4176,4403.3,4401.3,2.27205598]
[1755283534088,3.966,4403.3,4401.3,2.27205598]
[1755283534298,3.966,4403.3,4401.3,2.87235598]
[1755283534498,3.966,4403.3,4400.6,0.1966]
[1755283534499,0.9076,4403.1,4400.6,0.1966]
[1755283534812,2.27129415,4402.8,4401.3,2.27204495]
[1755283535030,0.476,4402.4,4399.8,0.1966]
[1755283535229,0.476,4402.4,4400.1,2.27267562]
[1755283535433,4.4216,4402.3,4399.9,0.4037]
[1755283535793,2.27203305,4401.4,4400.2,2.27262206]
[1755283536095,2.27203305,4401.4,4399.9,0.4037]
[1755283536096,2.27200079,4401.5,4399.9,0.4037]
[1755283536299,0.456,4401.9,4399.9,0.4037]
[1755283536300,2.27205598,4401.3,4400.0,2.27272727]
[1755283536523,2.2722219,4401.0,4400.0,2.27272727]
[1755283536736,0.456,4401.9,4399.9,0.4037]
[1755283537032,2.27195614,4401.5,4400.1,2.27262512]
[1755283537188,2.27195614,4401.5,4400.5,2.2724683]
[1755283537395,0.02,4402.4,4400.6,2.27241739]
[1755283537695,0.02,4402.4,4401.7,2.2717999]
[1755283537901,0.02,4402.4,4401.8,2.27178186]
[1755283538095,0.02,4402.4,4401.1,0.4037]
[1755283538443,0.1336,4402.4,4401.8,0.1136]
[1755283538731,0.02,4402.4,4401.9,2.27171188]
[1755283538904,0.02,4402.4,4400.9,2.27222079]
[1755283538905,0.02,4402.4,4400.9,3.55]
[1755283539105,0.02,4402.4,4402.2,0.1136]
[1755283539332,0.02,4402.4,4402.3,2.27153987]
[1755283541308,0.02,4402.4,4400.8,0.4037]
[1755283541605,0.9324,4402.3,4401.2,2.27208322]
[1755283541806,0.02,4402.4,4401.9,2.27172333]
[1755283542207,0.9324,4402.3,4400.2,0.1966]
[1755283542421,0.9324,4402.3,4399.4,2.27298778]
[1755283542422,0.9324,4402.3,4399.9,0.4037]
[1755283542834,0.57793773,4402.1,4399.2,0.4037]
[1755283543008,2.27242784,4400.6,4399.1,0.02]
[1755283543209,0.9324,4401.0,4399.1,0.02]
[1755283543447,0.9324,4400.5,4399.1,0.02]
[1755283543645,0.9324,4400.5,4399.9,2.27276892]
[1755283543947,0.9324,4400.5,4399.2,2.27314057]
[1755283544121,0.9324,4400.5,4399.2,0.22931406]
[1755283544327,3.20487074,4400.5,4399.1,0.02]
[1755283544646,0.9324,4400.5,4399.6,2.27288402]
[1755283544822,0.9324,4400.5,4399.7,2.27287735]
[1755283545028,0.9324,4400.5,4399.5,2.27294176]
[1755283545331,2.27257232,4400.3,4399.1,0.02]
[1755283545523,0.46752286,4400.2,4399.7,2.27285403]
[1755283545723,0.46752286,4400.4,4399.8,2.27280273]
[1755283545956,0.46752286,4400.3,4399.8,2.27280273]
[1755283546112,0.46752286,4400.2,4399.7,2.27287125]
[1755283546444,0.95362286,4400.1,4399.2,2.27314057]
[1755283546648,3.05480801,4400.6,4399.7,2.27283253]
[1755283546830,0.67546113,4400.5,4399.7,2.27283253]
[1755283547034,0.47101427,4400.4,4399.8,2.27282049]
[1755283547332,0.47101427,4400.3,4399.2,2.27314057]
[1755283547534,0.47101427,4400.2,4399.2,2.27314057]
[1755283547737,0.47101427,4400.5,4399.3,0.4037]
[1755283547939,0.78438459,4401.0,4400.5,2.2724194]
[1755283548146,0.47128959,4400.9,4400.6,2.27241256]
[1755283548321,0.47128959,4400.8,4400.7,2.27236575]
[1755283548517,0.002,4401.0,4400.9,2.27226249]
[1755283548759,0.47328959,4401.0,4399.9,3.948]
[1755283548970,0.002,4401.0,4400.9,2.27226249]
[1755283549416,0.002,4401.0,4400.8,2.27231402]
[1755283549616,0.002,4401.0,4400.0,3.07122175]
[1755283549617,0.002,4401.0,4400.0,4.7445]
[1755283549819,0.002,4401.0,4400.6,2.27237376]
[1755283550073,0.002,4401.0,4400.1,2.27264666]
[1755283550249,0.002,4401.0,4398.4,2.27351568]
[1755283550250,0.002,4401.0,4399.7,3.943]
[1755283550453,0.4711634,4400.9,4399.8,2.27278853]
[1755283550682,2.94183348,4400.8,4399.9,2.27273975]
[1755283550838,2.27243435,4400.6,4399.1,3.02]
[1755283551038,0.4711634,4400.5,4399.8,2.27280928]
[1755283551348,0.4711634,4400.4,4399.1,0.02]
[1755283551542,2.2724785,4400.5,4399.7,2.27287447]
[1755283551543,0.4711634,4400.3,4399.7,2.27287447]
[1755283551770,0.4711634,4400.2,4399.7,2.27287447]
[1755283551929,0.4711634,4400.1,4399.6,2.2729224]
[1755283552131,0.4711634,4400.0,4399.7,0.1136]
[1755283552334,0.69153773,4400.5,4399.7,0.1136]
[1755283552533,0.47129229,4400.4,4399.8,2.27282008]
[1755283552771,0.47129229,4400.3,4399.2,2.27309449]
[1755283552948,0.47129229,4400.2,4400.0,0.1136]
[1755283553272,0.47129229,4400.1,4400.0,2.27272727]
[1755283553744,0.47129229,4400.1,4400.0,2.38632727]
[1755283555670,0.57793773,4400.8,4400.7,2.27236575]
[1755283555837,0.47232234,4400.8,4400.7,2.27236575]
[1755283556035,0.002,4401.0,4400.9,2.27226249]
[1755283556387,0.4746831,4401.0,4400.9,2.27226249]
[1755283556670,1.05262083,4401.0,4400.7,2.27236292]
[1755283556968,0.4726831,4400.9,4399.9,2.27277892]
[1755283557152,0.4726831,4400.8,4400.7,2.27236575]
[1755283557955,0.4726831,4400.8,4400.7,2.38596575]
[1755283558166,1.06348588,4400.8,4400.7,2.38596575]
[1755283559172,1.25415337,4400.8,4400.7,2.38596575]
[1755283559371,0.4726831,4400.8,4400.7,2.38596575]
[1755283560450,1.26595252,4400.8,4400.7,2.85180627]
[1755283560646,1.06769693,4400.8,4400.7,3.45210627]
[1755283560858,0.002,4401.0,4400.9,2.27226249]
[1755283561170,0.002,4401.0,4400.9,6.18426249]
[1755283561371,0.002,4401.5,4401.4,2.27200436]
[1755283561734,0.002,4401.5,4401.4,2.38560436]
[1755283563244,1e-08,4402.4,4402.2,0.55]
[1755283563571,0.02,4404.4,4403.3,2.271024]
[1755283563572,1.59190608,4404.0,4403.3,2.271024]
[1755283563795,0.02,4404.4,4403.3,6.180024]
[1755283563977,0.02,4404.4,4403.3,0.1136]
[1755283564180,0.4861,4404.2,4403.4,2.27097243]
[1755283564474,0.4861,4404.2,4403.8,2.38436615]
[1755283565481,0.4463,4404.3,4403.8,2.38436615]
[1755283565652,0.02,4404.4,4403.8,2.38436615]
[1755283567189,1e-08,4403.9,4403.8,2.78806615]
[1755283567392,1e-08,4403.9,4403.8,2.98466615]
[1755283567785,1e-08,4403.9,4403.8,6.53466615]
[1755283568289,1e-08,4403.9,4403.8,9.27936615]
[1755283568469,1e-08,4403.9,4403.8,10.43438691]
[1755283569358,1e-08,4403.9,4403.8,10.83808691]
[1755283569880,1e-08,4403.9,4403.8,6.53938691]
[1755283570177,1e-08,4403.9,4403.8,2.38436615]
[1755283570958,0.47730001,4403.9,4403.8,0.1136]
[1755283571192,0.93910001,4403.9,4403.8,0.1136]
[1755283571356,1.05270001,4403.9,4403.1,0.1136]
[1755283571555,1.05270001,4403.9,4403.0,3.891]
[1755283571762,1.05270001,4403.9,4402.9,0.1136]
[1755283571763,0.93910001,4403.9,4402.9,0.1136]
[1755283571957,0.1136,4403.6,4402.9,0.1136]
[1755283572159,2.38448493,4403.6,4402.9,0.1136]
[1755283572378,2.27092085,4403.5,4402.9,0.1136]
[1755283572593,2.38447568,4403.6,4402.9,2.38481947]
[1755283572797,0.1136,4403.6,4402.9,0.1136]
[1755283572983,0.1136,4403.8,4403.2,0.1136]
[1755283573186,1e-08,4403.9,4403.8,2.27076615]
[1755283573576,1e-08,4403.9,4403.8,2.38436615]
[1755283575172,1e-08,4403.9,4403.8,2.40707381]
[1755283575487,1e-08,4403.9,4403.8,3.24105822]
[1755283576595,1e-08,4403.9,4403.8,7.12505822]
[1755283577196,1e-08,4403.9,4403.8,3.24105822]
[1755283577397,1e-08,4403.9,4403.8,7.12005822]
[1755283579301,1e-08,4403.9,4403.8,6.69976615]
[1755283579478,1e-08,4403.9,4403.8,6.81336615]
[1755283579903,1e-08,4403.9,4403.8,10.21706615]
[1755283580203,1e-08,4403.9,4403.8,5.93436615]
[1755283580411,0.93910001,4403.9,4403.8,2.27076615]
[1755283580772,0.93910001,4403.9,4403.5,2.27087976]
[1755283580973,0.9391,4403.8,4403.6,2.2708616]
[1755283581181,1e-08,4403.9,4403.7,2.27081772]
[1755283581388,0.9391,4403.8,4403.5,2.2708716]
[1755283581623,0.9391,4403.7,4401.2,0.682353]
[1755283581910,1e-08,4403.9,4402.3,2.27149186]
[1755283581911,2.27107462,4403.3,4402.3,2.27149186]
[1755283582203,2.27107462,4403.3,4402.0,2.27165526]
[1755283582204,0.9391,4403.2,4401.9,3.895]
[1755283582404,3.21018686,4403.2,4402.0,3.895]
[1755283582607,0.9391,4403.2,4402.4,2.27146022]
[1755283582902,3.21017618,4403.2,4402.4,2.27146022]
[1755283583104,3.21017618,4403.2,4402.3,2.27152007]
[1755283583289,0.9391,4403.2,4402.0,3.895]
[1755283583495,0.9391,4403.2,4402.0,4.2845]
[1755283583689,0.9391,4403.2,4402.4,2.27144104]
[1755283583910,0.9391,4403.2,4402.7,2.27131378]
[1755283584220,0.9391,4403.2,4402.4,3.889]
[1755283584433,0.00200001,4403.9,4402.4,3.889]
[1755283584434,0.4618,4403.7,4403.0,2.27113017]
[1755283584721,0.4618,4403.7,4402.4,3.889]
[1755283584921,0.00200001,4403.9,4402.6,2.27138509]
[1755283585231,0.00200001,4403.9,4403.8,2.27076615]
[1755283588909,1e-08,4403.9,4403.8,2.73806615]
[1755283589115,1e-08,4403.9,4403.8,6.69176615]
[1755283589511,1e-08,4403.9,4403.8,5.82076615]
[1755283589708,1e-08,4403.9,4403.8,10.89102822]
[1755283589913,1e-08,4403.9,4403.8,2.27076615]
[1755283590136,0.46180001,4403.9,4403.8,2.27076615]
[1755283590333,0.46180001,4403.9,4403.8,2.38436615]
[1755283590533,1e-08,4403.9,4403.8,2.38436615]
[1755283590735,1e-08,4403.9,4403.8,6.25736615]
[1755283591133,1e-08,4403.9,4403.8,7.10918908]
[1755283591336,1e-08,4403.9,4403.8,6.25536615]
[1755283591749,1e-08,4403.9,4403.8,2.38436615]
[1755283592636,0.46180001,4403.9,4403.8,2.38436615]
[1755283593453,1e-08,4403.9,4403.8,2.38436615]
[1755283596966,1e-08,4403.9,4403.8,2.72866615]
[1755283597140,1e-08,4403.9,4403.8,8.42981716]
[1755283597341,1e-08,4403.9,4403.8,8.54341716]
[1755283597685,0.002,4404.8,4404.0,3.55]
[1755283597970,0.002,4404.8,4404.7,2.27030217]
[1755283598174,0.002,4404.8,4404.7,6.24490217]
[1755283599157,1e-08,4404.8,4404.7,11.50802981]
[1755283599489,1e-08,4405.3,4405.2,2.82004449]
[1755283599679,1e-08,4405.5,4405.4,2.81994143]
[1755283599876,1e-08,4405.5,4405.4,3.48990562]
[1755283600053,1e-08,4405.5,4405.4,4.35150562]
[1755283600255,0.02,4406.4,4406.3,2.26947779]
[1755283600481,0.02,4406.4,4406.3,6.12447779]
[1755283600787,0.02,4406.4,4406.3,6.23807779]
[1755283602169,0.02,4406.4,4406.3,7.24597779]
[1755283602371,0.02,4407.4,4406.4,0.55]
[1755283602558,0.02,4407.4,4407.3,0.1136]
[1755283602759,0.02,4407.4,4407.3,6.23156285]
[1755283603580,1e-08,4407.4,4407.3,9.11796285]
[1755283603760,1e-08,4407.4,4407.3,10.66901386]
[1755283603993,1e-08,4407.4,4407.3,2.38256285]
[1755283604307,0.44080001,4407.4,4407.3,2.38256285]
[1755283604502,0.44080001,4407.4,4407.3,6.22756285]
[1755283604702,0.91400001,4407.4,4407.3,6.22856285]
[1755283605926,0.91400001,4407.4,4407.3,0.1136]
[1755283607343,1e-08,4407.4,4407.3,2.38256285]
[1755283608534,0.44080001,4407.4,4407.3,2.38256285]
[1755283608736,0.91400001,4407.4,4407.3,2.38256285]
[1755283609105,1e-08,4407.4,4407.3,2.38256285]
[1755283609308,1e-08,4407.4,4407.3,3.23122278]
[1755283609552,1e-08,4407.4,4407.3,7.06322278]
[1755283609856,1e-08,4407.4,4407.3,7.61322278]
[1755283610058,1e-08,4407.4,4407.3,6.76456285]
[1755283610554,1e-08,4407.4,4407.3,2.93256285]
[1755283610710,1e-08,4407.4,4407.3,6.76556285]
[1755283610912,1e-08,4407.4,4407.3,2.93256285]
[1755283611239,1e-08,4407.4,4407.3,6.21156285]
[1755283611432,0.44080001,4407.4,4407.3,2.38256285]
[1755283611606,1e-08,4407.4,4407.3,2.38256285]
[1755283611806,1e-08,4407.4,4407.3,6.21056285]
[1755283612714,1e-08,4407.4,4407.3,6.66846285]
[1755283612941,1e-08,4407.4,4407.3,7.56221278]
[1755283613256,1e-08,4407.4,4407.3,11.51591278]
[1755283613456,0.002,4408.3,4408.2,2.26849961]
[1755283613971,0.002,4408.3,4408.2,2.38209961]
[1755283614114,0.002,4408.3,4408.2,6.20709961]
[1755283614322,0.002,4408.3,4408.2,2.38209961]
[1755283614617,0.002,4408.3,4408.2,6.20609961]
[1755283615040,1e-08,4408.3,4408.2,6.75609961]
[1755283615227,1e-08,4408.4,4408.3,5.81844815]
[1755283615440,0.17163178,4410.9,4408.3,5.81844815]
[1755283615441,0.4732,4411.6,4408.6,0.55]
[1755283615624,0.4608,4411.4,4410.3,2.26741944]
[1755283615949,0.4608,4411.4,4410.3,6.20901944]
[1755283616115,0.4732,4410.9,4410.3,6.20901944]
[1755283616317,0.4608,4410.4,4410.3,2.38101944]
[1755283616615,0.4608,4410.4,4410.3,6.20901944]
[1755283616935,0.02,4410.4,4410.3,6.75901944]
[1755283617448,0.02,4410.4,4410.3,8.29058363]
[1755283617611,0.02,4411.4,4410.4,0.55]
[1755283617816,0.02,4411.4,4411.3,0.1136]
[1755283618050,0.02,4411.4,4411.3,6.20650544]
[1755283618351,0.02,4411.4,4411.3,9.75650544]
[1755283618848,0.934,4411.4,4411.3,0.1136]
[1755283619059,0.934,4411.4,4411.0,0.1136]
[1755283619264,0.02,4411.4,4411.0,0.1136]
[1755283619566,0.914,4411.3,4411.0,0.1136]
[1755283619752,0.914,4411.2,4411.0,0.1136]
[1755283620137,0.914,4411.2,4409.8,3.0]
[1755283620138,0.4408,4411.1,4409.8,3.0]
[1755283620337,0.02,4411.4,4410.0,0.55]
[1755283620536,0.02,4411.4,4411.2,0.55]
[1755283620735,0.02,4411.4,4411.3,9.66557449]
[1755283620736,1e-08,4411.4,4411.3,9.66557449]
[1755283620957,1e-08,4411.4,4411.3,9.64290544]
[1755283621164,1e-08,4411.4,4411.3,10.50450544]
[1755283621362,1e-08,4411.4,4411.3,11.35197254]
[1755283621533,1e-08,4411.4,4411.3,5.81690544]
[1755283621865,1e-08,4411.4,4411.3,9.64890544]
[1755283622372,1e-08,4412.6,4411.4,3.55]
[1755283622541,1e-08,4412.6,4412.5,5.81628895]
[1755283622730,1e-08,4412.6,4412.5,9.64528895]
[1755283622936,1e-08,4412.6,4412.5,9.65128895]
[1755283623247,1e-08,4412.6,4412.5,9.65028895]
[1755283623628,1e-08,4412.6,4412.1,3.0]
[1755283623827,0.914,4412.5,4411.6,3.835]
[1755283624058,0.914,4412.5,4411.7,3.841]
[1755283624263,0.914,4412.5,4411.0,3.0]
[1755283624264,0.914,4412.5,4411.8,3.842]
[1755283624570,0.914,4412.5,4411.0,1.32150548]
[1755283624571,0.4408,4412.4,4411.7,3.841]
[1755283625059,1e-08,4412.6,4412.3,2.26639167]
[1755283625272,1e-08,4412.6,4412.4,2.26633867]
[1755283625456,1e-08,4412.6,4412.2,3.84]
[1755283625961,0.002,4412.3,4412.2,3.84]
[1755283626178,0.916,4412.3,4411.0,3.0]
[1755283626378,0.911,4412.2,4411.0,2.26703113]
[1755283626585,2.26679837,4411.6,4410.7,2.26716665]
[1755283626871,3.002,4412.3,4410.6,3.841]
[1755283626872,0.911,4411.5,4410.6,6.10824925]
[1755283627034,0.911,4411.5,4410.9,2.26710054]
[1755283627234,0.911,4411.5,4410.8,2.26715432]
[1755283627462,0.911,4411.4,4410.1,0.02]
[1755283627766,0.911,4411.4,4410.1,3.859]
[1755283627982,0.911,4411.4,4410.2,0.3859]
[1755283628129,0.911,4411.4,4410.9,2.26706224]
[1755283628335,2.26651603,4412.1,4410.3,0.55]
[1755283628336,0.4399,4411.9,4411.4,2.26684737]
[1755283628558,0.4399,4411.8,4411.4,2.26684737]
[1755283628983,0.002,4412.3,4411.4,2.26685405]
[1755283629209,0.002,4412.3,4411.3,3.839]
[1755283629504,2.26680679,4411.5,4410.7,6.10421212]
[1755283629806,0.4399,4411.7,4411.1,2.26696621]
[1755283630003,0.4399,4411.7,4411.2,3.837]
[1755283630205,0.1136,4412.0,4411.4,0.1136]
[1755283630410,0.4399,4411.6,4411.4,0.1136]
[1755283630775,0.1136,4412.0,4411.4,0.1136]
[1755283631117,0.4399,4412.1,4411.6,2.2667053]
[1755283631273,0.4399,4412.1,4411.8,0.1136]
[1755283631473,0.002,4412.3,4412.1,2.26648443]
[1755283631673,0.002,4412.3,4412.2,2.26644304]
[1755283632286,0.002,4412.3,4412.2,2.28910747]
[1755283632493,0.002,4412.3,4412.2,2.26644304]
[1755283633431,0.002,4412.3,4412.2,2.81644304]
[1755283633590,0.002,4412.3,4412.2,7.7335657]
[1755283633792,1e-08,4412.3,4412.2,7.71090127]
[1755283634726,1e-08,4412.8,4412.7,2.81618623]
[1755283634925,1e-08,4412.8,4412.7,9.66384809]
[1755283635196,1e-08,4412.8,4412.7,10.80090485]
[1755283635404,1e-08,4412.8,4412.7,10.91450485]
[1755283635817,1e-08,4412.8,4412.7,10.63288623]
[1755283635999,1e-08,4412.8,4412.7,5.37978623]
[1755283636199,1e-08,4412.8,4412.7,2.37978623]
[1755283636925,1e-08,4412.8,4412.7,6.19978623]
[1755283638030,0.91100001,4412.8,4412.7,3.9286]
[1755283638231,0.91100001,4412.8,4412.7,0.1136]
[1755283639520,1.22870351,4412.8,4412.7,0.1136]
[1755283639715,0.91100001,4412.8,4412.7,0.1136]
[1755283640093,1e-08,4412.8,4412.7,0.1136]
[1755283640705,1e-08,4412.8,4412.7,2.37978623]
[1755283641113,1e-08,4412.8,4412.7,6.18778623]
[1755283642800,1e-08,4412.8,4412.7,10.61588623]
[1755283642995,1e-08,4412.8,4412.7,11.79050372]
[1755283643203,1e-08,4413.5,4413.4,2.8158268]
[1755283643442,1e-08,4413.5,4413.4,9.6208268]
[1755283643738,1e-08,4413.5,4413.4,10.0952268]
[1755283643936,1e-08,4413.7,4413.6,2.26572412]
[1755283644138,1e-08,4413.7,4413.6,2.28838136]
[1755283644453,0.02,4414.4,4413.7,0.55]
[1755283644602,1e-08,4414.4,4414.3,5.81536483]
[1755283644803,1e-08,4414.4,4414.3,9.61736483]
[1755283645321,1e-08,4414.5,4414.4,5.81531351]
[1755283645517,1e-08,4414.5,4414.4,6.69341351]
[1755283645826,1e-08,4414.5,4414.4,7.02258191]
[1755283646836,1e-08,4414.5,4414.4,6.61888191]
[1755283647454,1e-08,4414.5,4414.4,5.81531351]
[1755283647745,1e-08,4414.5,4414.4,9.61331351]
[1755283648249,1e-08,4414.5,4414.4,5.81531351]
[1755283648411,1e-08,4414.5,4414.4,9.61031351]
[1755283648611,0.43990001,4414.5,4414.4,2.26531351]
[1755283648939,0.91100001,4414.5,4414.4,6.06031351]
[1755283649149,0.91100001,4414.5,4414.4,2.26531351]
[1755283649349,0.43990001,4414.5,4414.4,2.26531351]
[1755283649510,1e-08,4414.5,4414.4,2.26531351]
[1755283649818,1e-08,4414.5,4414.4,5.81531351]
[1755283651244,0.91100001,4414.5,4414.4,2.26531351]
[1755283651543,0.91100001,4414.5,4414.4,6.06131351]
[1755283652353,0.91100001,4414.5,4412.3,2.26636219]
[1755283652564,2.26537293,4414.3,4413.5,2.26576853]
[1755283652707,2.26550996,4414.1,4413.3,2.26584531]
[1755283652907,0.911,4414.0,4413.3,2.26584531]
[1755283653159,3.17657432,4413.9,4413.8,0.1136]
[1755283653335,1.34225743,4413.9,4413.1,0.1136]
[1755283653544,0.911,4413.9,4413.8,2.37922145]
[1755283653712,0.911,4413.9,4413.8,0.1136]
[1755283654362,0.911,4413.9,4413.8,2.37922145]
[1755283654558,0.911,4413.9,4413.8,0.1136]
[1755283655055,0.911,4413.9,4413.8,2.37922145]
[1755283655217,0.911,4413.9,4413.8,0.1136]
[1755283655414,0.4399,4413.9,4413.8,2.37922145]
[1755283655615,0.4399,4414.3,4413.9,2.26555849]
[1755283655929,0.911,4414.2,4413.8,0.1136]
[1755283656125,0.8999,4414.1,4413.8,0.1136]
[1755283656550,0.43440001,4414.5,4413.8,0.1136]
[1755283656745,0.43440001,4414.5,4414.0,2.26547609]
[1755283656917,1e-08,4414.5,4414.0,2.26547609]
[1755283657116,0.8999,4414.4,4414.0,2.26547609]
[1755283657614,0.4655,4414.4,4414.1,2.26544821]
[1755283657814,0.4655,4414.4,4413.8,2.37922085]
[1755283657815,0.8999,4414.3,4413.8,0.1136]
[1755283658140,1e-08,4414.5,4412.8,0.1136]
[1755283658141,2.26583835,4413.4,4412.8,0.1136]
[1755283658333,0.8999,4413.3,4412.8,0.35167876]
[1755283658542,0.8999,4413.2,4412.8,0.35167876]
[1755283658729,2.26598761,4413.1,4412.8,0.1136]
[1755283658928,3.16588761,4413.1,4412.8,0.1136]
[1755283659157,0.8999,4413.0,4412.6,0.001]
[1755283659738,0.8999,4413.0,4412.9,2.37968352]
[1755283659739,0.4344,4413.0,4412.9,2.37968352]
[1755283659941,0.4344,4413.5,4413.2,2.26591599]
[1755283660143,0.4344,4413.5,4412.6,2.26722463]
[1755283660342,0.4344,4413.5,4413.3,2.37946535]
[1755283660741,0.58712564,4414.0,4413.3,0.1136]
[1755283660928,0.8999,4413.4,4412.6,0.001]
[1755283661118,0.1136,4413.2,4412.6,0.1146]
[1755283661450,0.8999,4413.1,4412.6,0.1146]
[1755283661672,0.8999,4413.0,4412.6,0.001]
[1755283662049,0.4344,4413.0,4412.6,2.26722703]
[1755283662223,0.4344,4413.0,4412.6,0.2277227]
[1755283662423,0.4344,4413.0,4412.6,0.001]
[1755283663026,0.4344,4413.0,4412.8,2.26608604]
[1755283663353,0.4344,4412.9,4412.8,2.26613488]
[1755283663529,2.26579667,4413.5,4412.6,0.001]
[1755283663530,0.4344,4413.4,4412.6,0.001]
[1755283663723,2.26419407,4416.6,4412.6,0.001]
[1755283663724,0.4344,4414.0,4413.4,2.26581154]
[1755283663958,1e-08,4414.5,4412.8,0.55]
[1755283664251,1e-08,4414.5,4414.0,2.26549889]
[1755283664252,0.4344,4414.4,4414.0,2.26549889]
[1755283664454,0.4344,4414.4,4414.1,2.26544315]
[1755283664750,0.4344,4414.4,4414.1,2.26545806]
[1755283664955,1e-08,4414.5,4413.1,3.781]
[1755283664956,1e-08,4414.5,4413.2,0.55]
[1755283665153,0.4344,4414.3,4413.6,2.26567616]
[1755283665353,0.4344,4414.3,4413.2,0.9281]
[1755283665354,0.4655,4414.2,4413.5,2.26576948]
[1755283665517,0.4344,4414.1,4413.2,0.3781]
[1755283665721,0.4344,4414.1,4413.9,2.26551961]
[1755283665952,1e-08,4414.5,4412.7,3.0]
[1755283666128,1e-08,4414.5,4414.4,2.26531351]
[1755283666330,1e-08,4414.5,4413.4,0.55]
[1755283666520,0.8999,4414.4,4413.2,2.26592948]
[1755283666718,0.8999,4414.4,4413.3,2.26587814]
[1755283666923,0.8999,4414.4,4414.0,2.26548088]
[1755283667244,0.4344,4414.4,4414.2,2.26541205]
[1755283667621,1e-08,4414.5,4414.1,2.26542952]
[1755283667961,0.4344,4414.3,4414.1,2.26542024]
[1755283668155,0.4344,4414.3,4413.2,5.26592114]
[1755283668359,0.4344,4414.2,4413.8,2.26557939]
[1755283668564,0.8999,4414.1,4412.2,0.455]
[1755283668763,3.771,4414.0,4412.8,0.001]
[1755283668952,6.93643112,4414.0,4412.8,0.001]
[1755283669262,2.26571532,4413.7,4412.8,0.001]
[1755283669460,2.26573098,4413.6,4412.8,2.26713352]
[1755283669762,0.8999,4413.5,4412.8,2.26713352]
[1755283669966,0.8999,4413.5,4412.8,0.001]
[1755283670493,0.4344,4413.7,4412.8,0.001]
[1755283670630,0.4767572,4414.6,4412.8,0.001]
[1755283670631,2.26523503,4414.6,4412.8,0.001]
[1755283670830,2.69976816,4414.3,4413.5,2.265763]
[1755283671248,3.91982208,4414.3,4413.5,2.265763]
[1755283671626,0.1136,4414.1,4413.5,0.1136]
[1755283671867,0.4344,4414.3,4413.5,0.1136]
[1755283672023,2.26548238,4414.1,4413.5,0.1136]
[1755283672226,0.4344,4414.0,4413.5,0.1136]
[1755283672427,0.76229115,4414.0,4412.8,0.001]
[1755283672623,0.76229115,4414.0,4412.8,0.1146]
[1755283672624,0.1136,4413.4,4412.8,0.1146]
[1755283672940,3.16578438,4413.3,4412.8,0.001]
[1755283673262,0.1136,4413.1,4412.8,0.001]
[1755283673447,2.37958985,4413.1,4412.8,0.001]
[1755283673654,0.8999,4413.0,4412.8,0.001]
[1755283674186,0.76234899,4412.9,4412.8,0.001]
[1755283674335,0.8999,4412.9,4412.6,0.001]
[1755283674663,2.26644304,4412.2,4412.1,0.02]
[1755283674838,6.03444304,4412.2,4412.1,0.02]
[1755283675039,6.93434304,4412.2,4412.1,0.02]
[1755283675341,9.93434304,4412.2,4412.1,0.02]
[1755283675865,10.39521705,4412.2,4412.1,0.02]
[1755283676566,10.56244626,4412.2,4412.1,0.02]
[1755283676770,10.09957225,4412.2,4412.1,0.02]
[1755283677168,3.761,4412.2,4412.1,0.02]
[1755283677468,0.4344,4413.2,4412.1,0.02]
[1755283677671,3.0,4413.0,4412.1,0.02]
[1755283677897,2.26618246,4412.8,4412.1,0.02]
[1755283678570,2.26612453,4412.9,4412.1,2.28646297]
[1755283679074,5.26600052,4413.1,4412.2,2.26639305]
[1755283679299,3.76,4412.8,4412.2,2.26639305]
[1755283679518,2.26604382,4413.0,4412.2,2.26639305]
[1755283679519,3.759,4412.7,4412.2,2.26639305]
[1755283679678,2.26604382,4413.0,4412.1,0.02]
[1755283679679,2.26599211,4413.1,4412.3,2.26639078]
[1755283679886,0.8999,4413.2,4412.1,0.02]
[1755283679887,0.4344,4413.2,4412.2,2.26644304]
[1755283680113,3.757,4413.2,4412.8,2.26611088]
[1755283680402,5.443,4413.4,4412.9,2.26605998]
[1755283680606,3.757,4413.2,4413.0,2.26602906]
[1755283680934,3.757,4413.5,4413.3,2.26587032]
[1755283681212,0.4655,4414.6,4412.5,0.8577]